bitfinex-derivatives/quotes_SOLF0:USTF0_20250731
["timestamp","ask_amount","ask_price","bid_price","bid_amount"]
[1753994459286,3.13,174.97,174.95,3.06]
[1753994459494,115.27685214,174.99,174.89,6.71685214]
[1753994459689,3.13,174.96,174.94,3.06]
[1753994460286,115.25685214,174.95,174.86,6.71685214]
[1753994460491,3.13,174.92,174.87,3.06]
[1753994460803,3.13,174.9,174.83,6.71685214]
[1753994461089,3.13,174.9,174.77,402.30869806]
[1753994461090,108.54,174.92,174.87,6.71685214]
[1753994461289,114.2583,174.92,174.85,6.71685214]
[1753994461490,111.67,174.92,174.9,3.06]
[1753994461792,108.54,174.92,174.9,3.06]
[1753994462090,3.13,174.92,174.85,6.71685214]
[1753994462288,108.56,174.93,174.86,3.06]
[1753994462497,3.13,174.94,174.86,3.06]
[1753994462796,108.56,174.93,174.86,3.06]
[1753994464094,111.69,174.93,174.86,3.06]
[1753994464288,3.13,174.92,174.9,3.06]
[1753994464486,3.13,174.92,174.91,3.06]
[1753994464890,108.56,174.93,174.91,3.06]
[1753994465293,111.69,174.93,174.91,8.7782]
[1753994465795,108.56,174.94,174.92,3.06]
[1753994465999,3.13,174.92,174.86,3.06]
[1753994466498,111.69,174.94,174.86,9.77685214]
[1753994466693,108.56,174.94,174.87,3.06]
[1753994466993,3.13,174.93,174.87,3.06]
[1753994467394,8.8476,174.93,174.89,5.7187]
[1753994467598,3.13,174.92,174.85,3.06]
[1753994468000,3.13,174.9,174.88,3.06]
[1753994468700,5.7184,174.91,174.88,3.06]
[1753994469001,3.13,174.89,174.88,3.06]
[1753994469791,3.13,174.88,174.84,6.71685214]
[1753994469990,3.13,174.88,174.83,9.77685214]
[1753994470190,3.13,174.87,174.85,3.06]
[1753994470395,3.13,174.96,174.86,3.06]
[1753994470598,3.13,174.94,174.88,3.06]
[1753994471397,3.13,174.94,174.85,3.06]
[1753994471591,9.84685214,174.94,174.84,6.71685214]
[1753994471796,3.13,174.93,174.86,3.06]
[1753994472499,3.13,174.93,174.87,3.06]
[1753994472801,8.8489,174.9,174.88,3.06]
[1753994473597,5.7189,174.89,174.88,3.06]
[1753994474299,8.8488,174.9,174.89,3.06]
[1753994475903,3.13,174.93,174.84,9.77685214]
[1753994476096,108.54,174.92,174.84,9.77685214]
[1753994476301,5.7202,174.85,174.84,3.06]
[1753994479400,3.13,174.91,174.85,3.06]
[1753994479908,3.13,174.92,174.85,3.06]
[1753994480606,3.13,174.91,174.85,3.06]
[1753994481105,5.7199,174.86,174.85,3.06]
[1753994482809,5.7197,174.87,174.86,3.06]
[1753994483103,3.13,174.93,174.85,3.06]
[1753994483310,5.7185,174.91,174.87,3.06]
[1753994483505,3.13,174.93,174.87,8.7794]
[1753994483707,3.13,174.92,174.88,3.06]
[1753994483908,5.7185,174.91,174.88,3.06]
[1753994484302,3.13,174.92,174.88,3.06]
[1753994484498,3.13,174.92,174.87,3.06]
[1753994484499,5.7188,174.9,174.87,3.06]
[1753994484904,5.7188,174.9,174.86,12.43665214]
[1753994485104,3.13,174.89,174.86,3.06]
[1753994485303,3.13,174.89,174.84,6.71685214]
[1753994485304,3.13,174.89,174.85,3.06]
[1753994485506,3.13,174.91,174.85,3.06]
[1753994485706,3.13,174.93,174.85,3.06]
[1753994486208,5.7187,174.9,174.88,3.06]
[1753994486402,5.7187,174.9,174.89,3.06]
[1753994486608,3.13,174.9,174.84,6.71685214]
[1753994486807,3.13,174.9,174.82,4.77365673]
[1753994486808,5.7191,174.89,174.88,3.06]
[1753994487111,3.13,174.88,174.87,3.06]
[1753994487309,8.8492,174.88,174.87,3.06]
[1753994488711,4.5339861,174.94,174.87,3.06]
[1753994488908,3.22,174.97,174.91,3.18]
[1753994489407,3.22,174.97,174.92,3.18]
[1753994489612,3.22,174.97,174.93,3.18]
[1753994490112,5.7178,174.93,174.92,3.18]
[1753994490412,8.9378,174.93,174.92,3.18]
[1753994490612,113.0539861,174.98,174.86,4.77365673]
[1753994490820,113.0539861,174.98,174.87,3.18]
[1753994490821,3.22,174.91,174.87,3.18]
[1753994491012,3.22,174.94,174.86,3.18]
[1753994491212,3.22,174.92,174.88,3.18]
[1753994491817,3.22,174.89,174.86,3.18]
[1753994492116,3.22,174.92,174.87,3.18]
[1753994492715,8.9391,174.89,174.83,6.71827533]
[1753994492917,8.9391,174.89,174.88,3.18]
[1753994493110,5.7191,174.89,174.88,3.18]
[1753994493319,6.71827533,174.97,174.87,6.71827533]
[1753994493610,16.19240784,175.0,174.81,6.38309806]
[1753994493611,11.4308,175.0,174.9,3.18]
[1753994493821,5.718,174.92,174.89,6.71827533]
[1753994494020,8.938,174.92,174.91,3.18]
[1753994495021,3.22,174.92,174.86,3.18]
[1753994495713,6.71827533,174.93,174.86,5.7198]
[1753994495920,3.22,174.89,174.87,3.18]
[1753994496419,3.22,174.89,174.88,3.18]
[1753994497118,3.22,174.89,174.83,11.49193206]
[1753994497322,6.71827533,174.93,174.87,3.18]
[1753994497621,8.9395,174.88,174.87,3.18]
[1753994498218,5.7195,174.88,174.87,3.18]
[1753994498415,5.719,174.89,174.83,11.49193206]
[1753994498618,5.719,174.89,174.84,3.18]
[1753994498819,5.7192,174.88,174.86,5.7199]
[1753994499013,5.7192,174.88,174.87,3.18]
[1753994500321,3.22,174.98,174.88,3.18]
[1753994500623,3.22,175.02,174.95,3.18]
[1753994500816,5.7159,174.99,174.95,3.18]
[1753994501022,8.9359,174.99,174.95,3.18]
[1753994501425,8.9359,174.99,174.96,3.18]
[1753994501726,8.9359,174.99,174.97,3.18]
[1753994502123,3.22,174.99,174.95,3.18]
[1753994502325,3.22,175.04,174.99,3.18]
[1753994502525,3.22,175.04,174.98,6.71827533]
[1753994502820,8.9352,175.01,175.0,3.18]
[1753994503219,3.22,175.04,174.97,6.71827533]
[1753994504024,3.22,175.04,174.96,3.18]
[1753994504224,108.48,175.05,174.94,3.18]
[1753994504225,3.22,174.95,174.94,3.18]
[1753994504723,5.7169,174.96,174.95,3.18]
[1753994504927,8.9369,174.96,174.95,3.18]
[1753994505429,8.9369,174.96,174.9,11.52044016]
[1753994505430,5.7174,174.94,174.91,3.18]
[1753994505625,3.22,174.95,174.9,6.71827533]
[1753994505828,3.22,174.95,174.93,3.18]
[1753994506027,5.7173,174.94,174.93,3.18]
[1753994506226,3.22,174.97,174.91,3.18]
[1753994506728,5.7172,174.95,174.91,3.18]
[1753994506933,3.22,174.97,174.93,3.18]
[1753994507128,6.71827533,175.02,174.94,3.18]
[1753994507433,5.717,174.95,174.94,3.18]
[1753994509331,3.22,174.95,174.88,3.18]
[1753994509525,3.22,174.91,174.85,3.18]
[1753994509926,5.7199,174.86,174.85,3.18]
[1753994510623,3.22,174.88,174.86,3.18]
[1753994510832,3.22,174.87,174.86,3.18]
[1753994511032,8.9396,174.87,174.86,3.18]
[1753994511526,5.7208,174.84,174.82,6.71827533]
[1753994511731,5.7208,174.84,174.81,4.80310863]
[1753994511732,3.22,174.89,174.81,3.18]
[1753994512532,5.7208,174.84,174.81,3.18]
[1753994512732,3.22,174.87,174.81,3.18]
[1753994512928,6.71827533,174.86,174.81,3.18]
[1753994513130,3.22,174.85,174.81,3.18]
[1753994513340,3.22,174.85,174.79,3.18]
[1753994515127,5.7217,174.81,174.8,3.18]
[1753994515330,115.15827533,174.86,174.8,3.18]
[1753994515533,8.9413,174.82,174.8,3.18]
[1753994516534,8.9413,174.82,174.76,3.18]
[1753994516535,3.22,174.82,174.76,3.18]
[1753994517336,5.7216,174.81,174.78,5.7223]
[1753994517535,5.7216,174.81,174.8,3.18]
[1753994519533,8.9416,174.81,174.8,3.18]
[1753994519936,5.7213,174.82,174.8,3.18]
[1753994520138,8.9413,174.82,174.81,3.02]
[1753994520327,8.9413,174.82,174.77,5.7228]
[1753994520328,6.71827533,174.9,174.79,6.71827533]
[1753994520534,3.22,174.88,174.8,3.02]
[1753994520730,3.22,174.87,174.8,3.02]
[1753994520937,3.22,174.89,174.81,6.71827533]
[1753994521235,3.22,174.89,174.83,6.71827533]
[1753994521436,3.22,174.89,174.84,3.02]
[1753994521632,3.22,174.89,174.85,3.02]
[1753994521832,3.22,174.88,174.85,3.02]
[1753994522028,3.22,174.9,174.85,3.02]
[1753994522231,3.22,174.92,174.85,3.02]
[1753994522427,3.22,174.9,174.85,3.02]
[1753994522630,5.7198,174.87,174.86,3.02]
[1753994523432,5.7193,174.88,174.87,3.02]
[1753994524141,3.22,174.92,174.88,3.02]
[1753994524338,3.22,174.91,174.89,3.02]
[1753994524539,3.22,174.91,174.85,6.71827533]
[1753994524740,3.22,174.9,174.88,3.02]
[1753994525841,5.7192,174.89,174.86,3.02]
[1753994526336,3.22,174.92,174.86,3.02]
[1753994526642,3.22,174.91,174.88,3.02]
[1753994526940,5.7186,174.9,174.87,6.71827533]
[1753994527138,5.7186,174.9,174.89,3.02]
[1753994527540,8.9384,174.91,174.87,6.71827533]
[1753994527735,8.9384,174.91,174.9,3.02]
[1753994529231,108.44,174.94,174.89,3.02]
[1753994529232,3.22,174.9,174.89,3.02]
[1753994529436,3.22,174.92,174.89,3.02]
[1753994529645,8.9383,174.91,174.9,3.02]
[1753994530338,3.22,174.98,174.9,3.02]
[1753994530537,3.22,175.04,174.98,3.02]
[1753994530739,5.7157,174.99,174.98,3.02]
[1753994531034,3.22,174.99,174.98,3.02]
[1753994531235,5.7151,175.01,174.98,3.02]
[1753994531441,108.42,175.03,174.99,3.02]
[1753994531640,3.22,175.0,174.99,3.02]
[1753994531843,3.22,175.02,174.97,7.54814122]
[1753994532043,5.7156,175.0,174.98,3.02]
[1753994532235,8.9356,175.0,174.99,3.02]
[1753994532636,3.22,175.0,174.99,3.02]
[1753994533043,3.22,175.06,174.99,3.02]
[1753994533248,384.42,175.07,175.0,10.39906868]
[1753994533546,108.42,175.06,175.02,3.02]
[1753994533742,3.22,175.04,175.02,3.02]
[1753994534142,8.9342,175.04,175.02,3.02]
[1753994534343,3.22,175.04,175.02,3.02]
[1753994534544,8.9344,175.03,175.02,3.02]
[1753994534937,111.6,175.05,175.04,3.02]
[1753994535144,108.38,175.05,175.04,3.02]
[1753994535547,5.7137,175.05,175.04,3.02]
[1753994535851,114.0937,175.05,175.04,3.02]
[1753994536247,117.3137,175.05,175.04,3.02]
[1753994536746,3.22,175.03,175.01,3.02]
[1753994536946,3.22,175.03,175.02,3.02]
[1753994537141,3.22,175.03,175.0,7.37906868]
[1753994537344,108.38,175.05,174.98,7.37906868]
[1753994537547,3.22,175.04,174.99,3.02]
[1753994538047,8.9347,175.03,174.99,3.02]
[1753994538449,3.22,175.02,174.93,3.02]
[1753994538741,3.22,175.02,174.96,3.02]
[1753994538944,3.22,175.02,174.98,3.02]
[1753994539442,3.22,175.02,174.99,3.02]
[1753994540041,5.7157,175.0,174.99,3.02]
[1753994540846,5.7151,175.01,174.99,3.02]
[1753994541050,5.7151,175.01,175.0,3.02]
[1753994541442,114.0551,175.01,175.0,3.02]
[1753994541643,114.0547,175.03,175.0,3.02]
[1753994542145,108.32,175.04,175.01,7.37906868]
[1753994542447,111.54,175.04,175.02,3.02]
[1753994543150,3.22,175.03,175.02,3.02]
[1753994543347,8.9347,175.03,175.02,3.02]
[1753994543652,5.7147,175.03,175.02,3.02]
[1753994546748,114.0147,175.03,175.02,3.02]
[1753994547051,5.7147,175.03,175.02,3.02]
[1753994547251,114.0147,175.03,175.02,3.02]
[1753994548955,5.7147,175.03,175.02,3.02]
[1753994549253,117.0047,175.03,175.02,3.02]
[1753994549447,117.0047,175.03,175.01,7.37906868]
[1753994549448,3.01,175.01,174.99,7.37906868]
[1753994549754,3.01,174.99,174.95,7.37906868]
[1753994549955,111.29,174.99,174.96,5.7166]
[1753994550154,108.28,174.99,174.95,3.12]
[1753994550459,3.01,174.97,174.93,3.12]
[1753994550657,384.42,175.07,174.89,19.42495322]
[1753994550658,3.01,174.94,174.89,3.12]
[1753994550854,108.28,174.93,174.89,3.12]
[1753994551051,3.01,174.9,174.88,3.12]
[1753994551246,108.28,174.93,174.85,7.37906868]
[1753994551451,3.01,174.92,174.89,3.12]
[1753994551755,3.01,174.91,174.89,3.12]
[1753994552156,8.7283,174.91,174.9,3.12]
[1753994552759,5.7183,174.91,174.9,3.12]
[1753994553955,8.7283,174.91,174.9,3.12]
[1753994555654,3.01,174.92,174.86,3.12]
[1753994556254,108.28,174.93,174.85,7.37906868]
[1753994556562,3.01,174.89,174.88,3.12]
[1753994557354,3.01,174.89,174.85,13.09926868]
[1753994557559,3.01,174.89,174.88,3.12]
[1753994557957,8.729,174.89,174.88,3.12]
[1753994559956,108.28,174.91,174.88,3.12]
[1753994560457,3.01,174.97,174.89,10.49906868]
[1753994560666,3.01,175.04,174.96,10.49906868]
[1753994560962,108.28,175.03,174.98,7.64766444]
[1753994561162,3.01,175.02,174.98,7.64766444]
[1753994561562,5.7157,174.99,174.98,4.52766444]
[1753994561765,8.7257,174.99,174.98,4.52766444]
[1753994562263,108.28,175.03,174.94,3.12]
[1753994562264,4.52766444,175.01,174.94,3.12]
[1753994562467,3.01,175.0,174.94,3.12]
[1753994562767,5.7167,174.96,174.93,12.42860226]
[1753994562957,8.7267,174.96,174.94,3.12]
[1753994563362,3.01,174.95,174.93,6.71120226]
[1753994563667,3.01,174.95,174.94,3.12]
[1753994564667,3.01,174.93,174.91,8.8381]
[1753994564866,3.01,174.92,174.91,9.83120226]
[1753994565265,8.7276,174.94,174.92,3.12]
[1753994565465,8.7276,174.94,174.93,3.12]
[1753994566156,108.26,174.96,174.93,6.71120226]
[1753994566358,108.26,174.96,174.95,3.12]
[1753994566558,111.27,174.96,174.95,3.12]
[1753994566763,3.01,174.99,174.96,3.12]
[1753994566968,3.01,174.99,174.97,3.12]
[1753994567168,8.7258,174.99,174.97,3.12]
[1753994567368,3.01,175.0,174.97,3.12]
[1753994567665,3.01,174.99,174.97,3.12]
[1753994567865,3.01,174.98,174.97,3.12]
[1753994568169,3.01,174.98,174.95,6.71120226]
[1753994568170,3.01,174.99,174.98,3.12]
[1753994568569,5.7162,174.98,174.96,3.12]
[1753994568768,8.7262,174.98,174.97,3.12]
[1753994569669,5.7158,174.99,174.97,3.12]
[1753994570065,8.7258,174.99,174.97,3.12]
[1753994570262,8.7258,174.99,174.96,5.7167]
[1753994570568,8.7258,174.99,174.98,3.12]
[1753994572269,108.22,175.0,174.93,6.71120226]
[1753994572467,108.22,175.0,174.89,4.80310863]
[1753994572468,3.01,174.98,174.9,3.12]
[1753994573272,5.7173,174.95,174.91,5.718]
[1753994573472,3.01,174.94,174.9,3.12]
[1753994573973,3.01,174.94,174.92,5.7178]
[1753994574175,3.01,174.94,174.93,3.12]
[1753994574565,113.9373,174.95,174.94,3.12]
[1753994574765,116.9473,174.95,174.94,3.12]
[1753994575771,116.9473,174.95,174.93,3.12]
[1753994576068,108.22,174.95,174.91,3.12]
[1753994576274,3.01,174.94,174.85,11.51431089]
[1753994576569,3.01,174.94,174.88,5.7192]
[1753994577172,5.7186,174.9,174.88,5.7192]
[1753994577472,3.01,175.01,174.89,3.12]
[1753994577668,3.01,174.95,174.93,3.12]
[1753994577976,3.01,174.94,174.88,6.71120226]
[1753994578177,3.01,174.93,174.89,3.12]
[1753994578579,3.26,174.92,174.9,3.27]
[1753994578774,3.26,174.91,174.9,3.27]
[1753994578970,108.2,174.94,174.86,6.71120226]
[1753994579276,3.26,174.93,174.87,3.27]
[1753994579677,8.9779,174.93,174.88,5.7191]
[1753994579873,108.2,174.94,174.88,6.71120226]
[1753994580078,108.2,174.94,174.91,3.27]
[1753994580276,6.30674922,175.05,174.82,17.82529806]
[1753994580277,3.26,174.97,174.93,3.27]
[1753994580581,3.26,174.96,174.94,3.27]
[1753994580781,108.2,174.97,174.94,3.27]
[1753994580982,3.26,174.96,174.95,3.27]
[1753994581178,3.26,174.95,174.93,3.27]
[1753994581478,108.2,174.99,174.95,3.27]
[1753994581679,3.26,174.97,174.96,3.27]
[1753994582583,6.71120226,175.06,174.96,6.71120226]
[1753994582774,3.26,175.0,174.98,3.27]
[1753994582978,6.71120226,175.06,174.99,8.9855]
[1753994582979,3.26,175.06,174.99,8.9855]
[1753994583179,3.26,175.06,175.01,3.27]
[1753994583384,3.26,175.04,175.02,3.27]
[1753994584683,3.26,175.04,175.03,3.27]
[1753994585381,3.26,175.03,175.01,8.9849]
[1753994585584,3.26,175.03,175.01,5.7149]
[1753994585787,111.44,175.05,175.02,3.27]
[1753994585981,3.26,175.04,175.02,5.7147]
[1753994586189,3.26,175.04,175.03,3.27]
[1753994586579,26.52067956,175.17,175.03,3.27]
[1753994586580,3.26,175.09,175.03,3.27]
[1753994586885,11.48390927,175.16,175.0,6.71120226]
[1753994586886,3.26,175.08,175.06,3.27]
[1753994587585,3.26,175.15,175.06,3.27]
[1753994587784,3.26,175.13,175.06,3.27]
[1753994588388,5.7123,175.1,175.06,5.7132]
[1753994588583,3.26,175.09,175.07,3.27]
[1753994588977,108.16,175.14,175.07,5.7129]
[1753994589279,3.26,175.09,175.08,3.27]
[1753994589689,3.26,175.12,175.09,3.27]
[1753994589882,108.14,175.12,175.09,3.27]
[1753994590079,4.77270701,175.19,175.09,3.27]
[1753994590279,17.1229,175.24,175.11,6.71120226]
[1753994590280,3.26,175.18,175.11,6.71120226]
[1753994590482,3.26,175.23,175.15,9.98120226]
[1753994590783,384.14,175.24,175.16,8.98]
[1753994590784,5.7088,175.21,175.16,8.98]
[1753994590981,3.26,175.2,175.17,3.27]
[1753994591180,3.26,175.2,175.18,3.27]
[1753994591384,108.14,175.2,175.19,3.27]
[1753994591581,384.14,175.24,175.19,9.98120226]
[1753994591790,495.52,175.24,175.21,6.71120226]
[1753994591983,492.26,175.24,175.22,3.27]
[1753994592181,3.26,175.23,175.22,3.27]
[1753994592584,3.26,175.23,175.21,6.71120226]
[1753994592784,3.26,175.23,175.21,9.98120226]
[1753994593085,3.26,175.25,175.22,3.27]
[1753994593285,108.12,175.26,175.23,6.71120226]
[1753994593589,3.26,175.26,175.25,3.27]
[1753994594391,3.26,175.26,175.23,6.71120226]
[1753994594588,3.26,175.26,175.24,3.27]
[1753994594890,8.9669,175.26,175.24,3.27]
[1753994596089,108.08,175.27,175.19,3.27]
[1753994596291,3.26,175.26,175.21,3.27]
[1753994596487,3.26,175.26,175.22,3.27]
[1753994596691,3.26,175.25,175.22,3.27]
[1753994596891,108.08,175.27,175.22,3.27]
[1753994596892,108.06,175.26,175.23,3.27]
[1753994597089,3.26,175.25,175.23,3.27]
[1753994597291,5.7075,175.24,175.23,3.27]
[1753994597493,8.9675,175.24,175.23,3.27]
[1753994597893,5.7079,175.23,175.22,6.71120226]
[1753994598200,5.7079,175.23,175.22,9.98120226]
[1753994598389,5.7086,175.21,175.2,6.71120226]
[1753994598589,3.26,175.21,175.19,3.27]
[1753994598984,3.26,175.2,175.19,3.27]
[1753994599494,3.26,175.22,175.19,3.27]
[1753994599694,3.26,175.25,175.19,3.27]
[1753994601198,114.77120226,175.26,175.17,3.27]
[1753994601495,5.7083,175.22,175.17,3.27]
[1753994601696,3.26,175.23,175.18,3.27]
[1753994601894,111.32,175.26,175.19,3.27]
[1753994602088,111.32,175.26,175.2,6.71120226]
[1753994602293,108.06,175.26,175.2,6.71120226]
[1753994602488,108.02,175.26,175.21,3.27]
[1753994602698,108.02,175.26,175.2,6.71120226]
[1753994602896,3.26,175.25,175.22,3.27]
[1753994603094,3.26,175.24,175.22,3.27]
[1753994603288,3.26,175.23,175.22,3.27]
[1753994603691,114.73120226,175.26,175.2,3.27]
[1753994603887,3.26,175.21,175.2,3.27]
[1753994604094,3.26,175.21,175.16,6.71120226]
[1753994604386,3.26,175.21,175.2,3.27]
[1753994605700,3.26,175.21,175.16,6.71120226]
[1753994605889,3.26,175.23,175.17,3.27]
[1753994606399,8.9687,175.21,175.17,3.27]
[1753994606789,5.7089,175.2,175.17,3.27]
[1753994606995,3.26,175.21,175.19,3.27]
[1753994607398,5.7092,175.19,175.17,3.27]
[1753994607595,3.26,175.19,175.16,3.27]
[1753994607799,3.26,175.19,175.17,3.27]
[1753994608399,9.0195,175.18,175.15,3.08]
[1753994608707,3.31,175.17,175.16,3.08]
[1753994609502,9.0198,175.17,175.16,3.08]
[1753994609697,3.31,175.17,175.16,3.08]
[1753994609892,6.71120226,175.2,175.12,5.7114]
[1753994610091,3.31,175.19,175.13,3.08]
[1753994610705,5.7099,175.17,175.13,3.08]
[1753994610907,107.98,175.25,175.16,9.79120226]
[1753994611094,3.31,175.23,175.17,3.08]
[1753994611494,3.31,175.23,175.17,8.7896]
[1753994611701,3.31,175.22,175.18,3.08]
[1753994612499,114.69120226,175.26,175.16,6.71120226]
[1753994612706,3.31,175.21,175.2,3.08]
[1753994612904,3.31,175.25,175.2,3.08]
[1753994613507,3.31,175.23,175.19,3.08]
[1753994614506,9.0181,175.23,175.19,3.08]
[1753994614699,3.31,175.22,175.19,3.08]
[1753994614905,3.31,175.21,175.19,3.08]
[1753994615105,3.31,175.2,175.19,3.08]
[1753994615705,111.27,175.25,175.17,3.08]
[1753994615904,3.31,175.24,175.18,6.71120226]
[1753994616210,113.667,175.26,175.22,5.708]
[1753994616410,3.31,175.24,175.22,8.788]
[1753994616610,3.31,175.26,175.23,3.08]
[1753994616811,3.31,175.32,175.25,3.08]
[1753994617006,3.31,175.31,175.25,3.08]
[1753994617212,5.7056,175.3,175.27,5.7065]
[1753994617513,3.31,175.31,175.28,3.08]
[1753994617709,3.31,175.31,175.29,3.08]
[1753994618007,3.31,175.29,175.27,3.08]
[1753994618212,3.31,175.29,175.28,8.786]
[1753994618610,3.31,175.31,175.28,3.08]
[1753994618809,3.31,175.31,175.28,8.7861]
[1753994620214,113.6452,175.32,175.28,8.7861]
[1753994620412,3.31,175.35,175.29,3.08]
[1753994621516,3.31,175.38,175.29,3.08]
[1753994621722,107.92,175.37,175.31,3.08]
[1753994621911,3.31,175.37,175.31,3.08]
[1753994622311,3.31,175.37,175.33,8.7844]
[1753994622712,3.31,175.37,175.3,6.71120226]
[1753994623016,3.31,175.37,175.31,3.08]
[1753994623417,3.31,175.37,175.34,5.704]
[1753994623620,3.31,175.36,175.34,8.784]
[1753994623918,107.92,175.39,175.35,3.08]
[1753994623919,3.31,175.37,175.35,3.08]
[1753994624412,3.31,175.37,175.34,3.08]
[1753994624608,3.31,175.36,175.34,3.08]
[1753994624813,3.31,175.36,175.33,3.08]
[1753994625014,3.31,175.36,175.32,6.71120226]
[1753994625317,3.31,175.36,175.34,3.08]
[1753994625620,107.88,175.39,175.35,5.704]
[1753994625815,107.88,175.39,175.32,3.08]
[1753994626320,3.31,175.38,175.32,3.08]
[1753994627915,3.31,175.38,175.35,5.7036]
[1753994628221,3.31,175.38,175.35,3.08]
[1753994628422,3.31,175.38,175.37,3.08]
[1753994628817,3.31,175.38,175.34,6.71120226]
[1753994629021,3.31,175.37,175.36,3.08]
[1753994630017,3.31,175.36,175.35,8.7839]
[1753994630223,3.31,175.37,175.36,3.08]
[1753994630617,113.5424,175.4,175.32,3.08]
[1753994630618,3.31,175.36,175.32,3.08]
[1753994631219,10.02120226,175.36,175.29,3.08]
[1753994631420,3.31,175.35,175.29,3.08]
[1753994631619,3.31,175.35,175.3,6.71120226]
[1753994631817,3.31,175.35,175.32,5.7049]
[1753994632033,3.31,175.36,175.34,3.08]
[1753994632422,3.31,175.38,175.35,3.08]
[1753994632618,3.31,175.37,175.36,3.08]
[1753994632823,3.31,175.37,175.34,3.08]
[1753994633022,3.31,175.37,175.32,4.50980702]
[1753994633023,3.31,175.36,175.35,3.08]
[1753994633436,111.13,175.39,175.33,3.08]
[1753994633929,3.31,175.36,175.34,3.08]
[1753994635426,383.68,175.44,175.34,3.08]
[1753994635427,3.31,175.39,175.34,4.50980702]
[1753994635733,3.31,175.38,175.37,3.08]
[1753994636125,107.8,175.41,175.37,3.08]
[1753994636430,3.31,175.4,175.38,3.08]
[1753994636631,4.50980702,175.46,175.39,3.08]
[1753994636827,5.7016,175.43,175.39,3.08]
[1753994637024,3.31,175.42,175.38,4.50980702]
[1753994637227,3.31,175.41,175.4,3.08]
[1753994638727,9.012,175.41,175.4,3.08]
[1753994638930,9.012,175.41,175.39,3.1]
[1753994639432,3.31,175.41,175.39,3.1]
[1753994640231,9.0122,175.41,175.39,3.1]
[1753994640729,3.07,175.45,175.38,3.1]
[1753994640934,3.07,175.45,175.42,3.1]
[1753994641132,3.07,175.44,175.43,3.1]
[1753994641333,3.07,175.43,175.39,3.1]
[1753994641534,4.50980702,175.43,175.29,11.4115]
[1753994641838,3.07,175.41,175.37,3.1]
[1753994642134,107.78,175.46,175.29,11.4115]
[1753994642135,3.07,175.46,175.41,3.1]